Cogmind - Beta 13 @@@ ROGUE MODE // 2024.06.25 @ 17:18:27 Player: Raikiriu Result: Destroyed by H-61 Shepherd with Heavy Assault Cannon Performance ------------- Evolutions (2) 1000 Regions Visited (3) 600 Robots Destroyed (54) 270 Value Destroyed (1544) 1544 Prototype IDs (2) 40 Alien Tech Used (0) 0 Bonus (0) 0 TOTAL SCORE: 3454 Bonus ------- None Cogmind --------- Core Integrity 0/550 Matter 285/300 Energy 265/265 System Corruption 0% Temperature Cool (0) Movement Treading (165) Location -8/Materials Parts ------- > --- POWER (2) -------- Improved Ion Engine > --- PROPULSION (2) --- Light Treads Armored Treads > --- UTILITY (4) ------ Heat Sink Signal Interpreter Improved Signal Interpreter Hardlight Generator > --- WEAPON (3) ------- Light Assault Rifle Heavy Assault Rifle Flak Cannon > --- INVENTORY (5) ---- Weight Redist. System Plasma Cannon Plasma Cannon Assault Rifle Peak State ------------ > --- POWER ------------ (None) > --- PROPULSION ------- Armored Treads Armored Treads > --- UTILITY ---------- Signal Interpreter Improved Signal Interpreter Hacking Suite Component Analysis Suite > --- WEAPON ----------- Plasma Cannon Plasma Cannon Plasma Cannon > --- INVENTORY -------- Weight Redist. System Trap Scanner Flak Cannon [Rating: 29] Favorites ----------- Power Ion Engine Engine Ion Engine Propulsion Armored Treads Treads Armored Treads Leg Aluminum Leg Wheel Wheel Hover Unit Hover Unit Flight Unit Flight Unit Utility Hacking Suite Device Improved Sensor Array Storage Small Storage Unit Processor Signal Interpreter Hackware Hacking Suite Protection Core Shielding Weapon Light Assault Rifle Energy Gun EM Pulse Gun Energy Cannon Plasma Cannon Ballistic Gun Light Assault Rifle Ballistic Cannon Flak Cannon Launcher Grenade Launcher Special Weapon Mining Laser Build | -11 -10 -9 -8 ------- Run | Yrd Mat Mat Mat Slots Evolved 4 | . . 2 2 Power 1 | . . 1 . Propulsion . | . . . . Utility 2 | . . 1 1 Weapon 1 | . . . 1 Parts Attached 75 | 6 13 28 28 Power 11 | 1 . 4 6 Engine 11 | 1 . 4 6 Core . | . . . . Reactor . | . . . . Propulsion 19 | 2 5 8 4 Treads 6 | . . 2 4 Leg 2 | . . 2 . Wheel 5 | 2 2 1 . Hover 2 | . 2 . . Flight 4 | . 1 3 . Utility 15 | 1 3 5 6 Device 6 | . . 2 4 Storage 3 | 1 1 1 . Processor 3 | . . 1 2 Hackware 1 | . 1 . . Protection 2 | . 1 1 . Artifact . | . . . . Weapon 30 | 2 5 11 12 Energy Gun 7 | 1 1 4 1 Energy Cannon 6 | . 2 . 4 Ballistic Gun 10 | 1 1 3 5 Ballistic Cannon 2 | . . . 2 Launcher 1 | . 1 . . Special Weapon 4 | . . 4 . Impact Weapon . | . . . . Slashing Weapon . | . . . . Piercing Weapon . | . . . . Special Melee Weapon . | . . . . Unidentified Prototypes 2 | . . 1 1 Corrupted Parts 2 | . . 2 . System Corruption 3 | . . 3 . Parts Lost 39 | . 6 14 19 Power 6 | . 1 . 5 Propulsion 10 | . 1 6 3 Utility 6 | . . 2 4 Weapon 17 | . 4 6 7 Highest Loss Streak 7 | . 5 6 7 To Critical Strikes . | . . . . Average Slot Usage (%) 74 | . 81 74 70 Engine 6 | . 1 8 7 Treads 8 | . . 4 17 Leg 1 | . . 5 . Wheel 5 | . 16 1 . Flight 4 | . 8 6 . Device 3 | . . 5 4 Storage 5 | . 9 8 . Processor 7 | . . 2 17 Hackware 10 | . 13 11 8 Protection 2 | . 4 2 . Energy Gun 3 | . 7 3 . Energy Cannon 3 | . 2 . 5 Ballistic Gun 10 | . 13 10 7 Special Weapon 1 | . . 4 . Naked Turns . | . . . . Heaviest Build 51 | 11 51 20 26 Greatest Support 46 | 26 26 46 40 Greatest Overweight (x) 10 | . 10 2 . Average Overweight (x) . | . 1 . . Largest Inventory Capacity 20 | 8 20 8 5 Average Capacity 8 | 6 14 7 5 Most Carried 6 | . 5 6 5 Average Carried 2 | . 2 3 2 Final Capacity 8 | 8 5 5 5 Final Carried 5 | . 5 4 4 Class Distribution -------------------- 59% | Mutant 17% | Scavenger-Mutant 10% | Gunner 7% | Skirmisher Dominant Class ---------------- Mutant | -10/Materials Mutant | -9/Materials Mutant | -8/Materials Resources | -11 -10 -9 -8 ----------- Run | Yrd Mat Mat Mat Matter Collected 1273 | 222 198 372 481 Remotely . | . . . . Salvage Created 1482 | . 300 479 703 Parts 108 | . 25 37 46 Haulers Intercepted . | . . . . Recyclers Shooed 3 | . 2 1 . Parts Field Recycled . | . . . . Retrieved Matter . | . . . . Parts Self-Destructed . | . . . . Prevented . | . . . . Kills | -11 -10 -9 -8 ------- Run | Yrd Mat Mat Mat Combat Hostiles Destroyed 48 | . 13 13 22 Melee 6 | . . 1 5 Guns 28 | . 7 8 13 Cannons 11 | . 4 3 4 AOE 2 | . 2 . . Classes Destroyed 8 | . 4 2 2 Worker 2 | . 1 . 1 Builder 1 | . . . 1 Operator 2 | . 1 . 1 Watcher 1 | . . 1 . Swarmer 17 | . 9 . 8 Grunt 23 | . 4 11 8 Sentry 5 | . . 2 3 Hunter 3 | . . . 3 Best Kill Streak 6 | . 4 3 6 Combat Bots Only 5 | . 4 2 5 Max Kills in Single Turn 2 | . 2 1 2 Gunslinging . | . . . . Exploded 2 | . 2 . . Melee 1 | . . 1 1 Uniques/NPCs Destroyed . | . . . . Combat | -11 -10 -9 -8 -------- Run | Yrd Mat Mat Mat Hostile Shots Fired 515 | . 99 134 282 Missed 132 | . 23 43 66 Damage Taken 5019 | . 798 1076 3145 Core 989 | . 215 198 576 Absorbed by Shields 28 | . . . 28 Redirected to Shielding 47 | . 27 20 . Regen/Repaired (Parts) 27 | . . 27 . Core Remaining (%) 54 | 100 14 50 . Volleys Fired 198 | . 61 55 82 Largest 3 | . 2 2 3 Hottest 240 | . 80 140 240 Shots Fired 315 | . 102 71 142 Gun 249 | . 80 60 109 Cannon 55 | . 18 4 33 Launcher 4 | . 4 . . Special 7 | . . 7 . Kinetic 210 | . 61 37 112 Thermal 82 | . 18 34 30 Explosive 4 | . 4 . . Electromagnetic 19 | . 19 . . Robot Hit Streak 12 | . 7 12 10 Robot Miss Streak 13 | . 3 3 13 Penetration Max . | . . . . Secondary Targets . | . . . . Shots Hit Robots 193 | . 52 49 92 Core Hits 98 | . 22 28 48 Critical Kills . | . . . . Critical Parts Destroyed 1 | . 1 . . Critical Strikes 1 | . 1 . . Destroy 1 | . 1 . . Melee Attacks . | . . . . Impact . | . . . . Slashing . | . . . . Piercing . | . . . . Sneak Attacks . | . . . . Combat Hostiles . | . . . . Follow-up Attacks . | . . . . Damage Inflicted 3115 | . 908 789 1418 Guns 1970 | . 442 587 941 Cannons 596 | . 124 18 454 Explosions 342 | . 342 . . Melee . | . . . . Ramming 87 | . . 64 23 Kinetic 1673 | . 312 408 953 Thermal 883 | . 124 317 442 Explosive 342 | . 342 . . Electromagnetic 130 | . 130 . . Impact . | . . . . Slashing . | . . . . Piercing . | . . . . Highest Corruption 7 | . . 7 . Average Corruption 6 | . . 6 . Corruption Purged . | . . . . Corruption Blocked . | . . . . Effects 23 | . . 23 . Message Errors 5 | . . 5 . Matter Fused 6 | . . 6 . Heat Flow Errors 2 | . . 2 . Energy Discharges 1 | . . 1 . Parts Rejected 1 | . . 1 . Data Loss (minor) 1 | . . 1 . Data Loss (major) 1 | . . 1 . Misfires 2 | . . 2 . Alerts 2 | . . 2 . Weapon Failures 2 | . . 2 . Overload Shots . | . . . . Overflow Damage 32 | . 32 . . Projectiles . | . . . . Explosions 32 | . 32 . . Melee . | . . . . Knockbacks 3 | . . 1 2 Impact 1 | . . 1 . Kinetic 1 | . . . 1 Secondary 1 | . . . 1 Self-Inflicted Damage 129 | . 114 15 . Shots 4 | . 4 . . Rammed 38 | . . 17 21 Targets Rammed 56 | . . 31 25 Kicked 14 | . . 14 . Crushed 4 | . . . 4 Highest Temperature 599 | . 170 271 599 Average Temperature 99 | . 41 42 174 Received Heat Transfer 1821 | . 147 579 1095 Effects 18 | . . . 18 Shutdowns 6 | . . . 6 Energy Bleed 3 | . . . 3 Interference 2 | . . . 2 Matter Decay 1 | . . . 1 Damage (minor) 1 | . . . 1 Damage (major) 5 | . . . 5 Siege Activations . | . . . . Robots Corrupted . | . . . . Combat Hostiles . | . . . . Parts Fried 2 | . 2 . . Impact Corruptions 1 | . . 1 . Robots Melted . | . . . . Combat Hostiles . | . . . . Parts Melted 2 | . . 1 1 Heat Transferred 1899 | . 259 733 907 Parts Sabotaged . | . . . . Parts Stolen . | . . . . Parts Stripped . | . . . . Power Chain Reactions . | . . . . Alert | -11 -10 -9 -8 ------- Run | Yrd Mat Mat Mat Peak Influence 292 | . 216 163 292 Initial 27 | . . 27 5 Average 84 | . 80 65 104 Maximum Alert Level 1 | . 1 . 1 Low Security (%) 95 | 100 99 100 88 Level 1 4 | . . . 11 Level 2 . | . . . . Level 3 . | . . . . Level 4 . | . . . . Level 5 . | . . . . High Security . | . . . . Max Security . | . . . . Squads Dispatched 10 | . 1 4 5 Investigation 4 | . . 2 2 Extermination . | . . . . Reinforcement 6 | . 1 2 3 Assault . | . . . . Garrison . | . . . . Intercept . | . . . . Searches Triggered . | . . . . Construction Impeded . | . . . . Haulers Reinforced . | . . . . Active Scanning Responses . | . . . . Cargo Convoy Interrupts . | . . . . Stealth | -11 -10 -9 -8 --------- Run | Yrd Mat Mat Mat Distress Signals 4 | . 1 2 1 Communications Jammed . | . . . . Distress Signals . | . . . . Times Spotted 72 | . 21 19 32 Peak Tracking Total 7 | . 5 3 7 Tactical Retreats 4 | . 3 . 1 Traps | -11 -10 -9 -8 ------- Run | Yrd Mat Mat Mat Traps Triggered 2 | . 2 . . Indirectly . | . . . . Trap Hack Attempts . | . . . . Triggered . | . . . . Disarmed . | . . . . Reprogrammed . | . . . . Reused . | . . . . Traps Extracted . | . . . . Installed . | . . . . Triggered . | . . . . Machines | -11 -10 -9 -8 ---------- Run | Yrd Mat Mat Mat Machines Disabled 3 | . 1 . 2 Max in Single Turn 1 | . 1 . 1 Machines Repaired . | . . . . Machines Dismantled . | . . . . Machines Sabotaged . | . . . . Overloaded Fab Kills . | . . . . Hacking | -11 -10 -9 -8 --------- Run | Yrd Mat Mat Mat Machines Accessed 9 | . 1 5 3 Terminals 8 | . 1 4 3 Fabricators . | . . . . Repair Stations 1 | . . 1 . Recycling Units . | . . . . Scanalyzers . | . . . . Garrison Access . | . . . . Total Hacks 29 | . 2 17 10 Successful 12 | . . 9 3 Failed 17 | . 2 8 7 Catastrophic 3 | . . 1 2 Database Lockouts . | . . . . Manual 13 | . 1 6 6 Terminals 26 | . 2 14 10 Fabricators . | . . . . Repair Stations 3 | . . 3 . Recycling Units . | . . . . Scanalyzers . | . . . . Garrison Access . | . . . . Terminal Hacks 10 | . . 7 3 Record 3 | . . 3 . Alert Level 4 | . . 3 1 Unreport Threat 1 | . . 1 . Hauler Manifests 1 | . . . 1 Zone Layout 1 | . . . 1 Fabricator Hacks . | . . . . Repair Station Hacks 2 | . . 2 . Scan Component 1 | . . 1 . Repair 1 | . . 1 . Recycling Unit Hacks . | . . . . Scanalyzer . | . . . . Garrison Access Hacks . | . . . . Unauthorized Hacks . | . . . . Terminals . | . . . . Fabricators . | . . . . Repair Stations . | . . . . Recycling Units . | . . . . Scanalyzers . | . . . . Garrison Access . | . . . . Data Cores Recovered . | . . . . Used . | . . . . Hacking Detections 9 | . 1 5 3 Full Trace Events 7 | . 1 3 3 Feedback Events . | . . . . Feedback Blocked . | . . . . Robot Schematics Acquired . | . . . . Robots Built . | . . . . Authchips . | . . . . Time . | . . . . Total Robot Build Rating . | . . . . Part Schematics Acquired . | . . . . Parts Built . | . . . . Authchips . | . . . . Time . | . . . . Total Part Build Rating . | . . . . Parts Repaired 1 | . . 1 . Time 26 | . . 26 . Parts Recycled . | . . . . Recycled Matter . | . . . . Retrieved Matter . | . . . . Retrieved Components . | . . . . Parts Scanalyzed . | . . . . Part Schematics Acquired . | . . . . Parts Damaged . | . . . . Bothacking | -11 -10 -9 -8 ------------ Run | Yrd Mat Mat Mat Used RIF Installer . | . . . . Robots Hacked . | . . . . Non-combat . | . . . . Combat . | . . . . Robot Hacks Applied . | . . . . Relay Couplers Released . | . . . . Fabnet Peak Effective % . | . . . . Robots Rewired . | . . . . Allies Hacked . | . . . . Hacks Repelled . | . . . . Allies | -11 -10 -9 -8 -------- Run | Yrd Mat Mat Mat Total Allies . | . . . . Largest Group . | . . . . Highest-Rated Group . | . . . . Highest-Rated Ally . | . . . . Total Orders . | . . . . Ally Attacks . | . . . . Total Damage . | . . . . Kills . | . . . . Allies Corrupted . | . . . . Allies Melted . | . . . . Intel | -11 -10 -9 -8 ------- Run | Yrd Mat Mat Mat Robot Analysis Total . | . . . . Derelict Logs Recovered . | . . . . Drone Launches . | . . . . Drone Recoveries . | . . . . Exploration | -11 -10 -9 -8 ------------- Run | Yrd Mat Mat Mat Turns Passed 2928 | 57 866 807 1198 Spaces Moved 1546 | 64 382 607 493 Core 73 | 23 3 47 . Treads 565 | . . 72 493 Legs 118 | . . 118 . Wheels 257 | 41 176 40 . Hover 87 | . 87 . . Flight 446 | . 116 330 . Fastest Speed 34 | 50 45 34 165 Average Speed 137 | 76 180 90 169 Slowest Speed 845 | 100 845 170 170 Overloaded Moves . | . . . . Propulsion Burnouts . | . . . . Robots Hopped 9 | . . 9 . Cave-ins Triggered . | . . . . Exploration Rate (%) 27 | 3 45 37 25 Regions Visited 3 Branch Regions . Pre-discovered Areas . | . . . . Known Exits Taken 1 | . . 1 . Unknown Exits Taken 2 | 1 1 . . Scrap Searched . | . . . . Spaces Dug . | . . . . Terrain Destroyed 23 | . 16 2 5 Melee . | . . . . Projectile 7 | . . 2 5 AOE 16 | . 16 . . Terrain Rammed . | . . . . Walls Destroyed . | . . . . Machines Disabled . | . . . . Actions | -11 -10 -9 -8 --------- Run | Yrd Mat Mat Mat Total 2001 | 69 465 764 703 Wait 97 | . . 30 67 Move 1525 | 63 381 588 493 Hop 9 | . . 9 . Pick Up 12 | . 3 9 . Fast Attach 53 | 6 11 16 20 Attach 20 | . 2 11 7 Detach 18 | . 4 7 7 Swap 2 | . . 1 1 Drop 11 | . 3 7 1 Fire 198 | . 61 55 82 Melee . | . . . . Ram 16 | . . 16 . Kick 14 | . . 14 . Crush 26 | . . 1 25 Escape Stasis . | . . . . Rewire . | . . . . Trap . | . . . . Miscellaneous . | . . . . Route ------- -11/Scrapyard -10/Materials (discovered 2 exits: *Mat / [*Min]) -9/Materials (discovered 2 exits: *Mat / [*Min]) -8/Materials History --------- Turn | Location | Event 33 | -11/Scrapyard | Discovered new exit (range 15) 58 | -11/Scrapyard | Entered Materials 203 | -10/Materials | Lost 5 parts (1p1n3w) 303 | -10/Materials | Build established: Mutant 661 | -10/Materials | Discovered new exit (range 16) 758 | -10/Materials | Core integrity fell below 50% 848 | -10/Materials | Core integrity fell below 20% 912 | -10/Materials | Discovered new exit (range 14) 924 | -10/Materials | Entered another Materials area 924 | -9/Materials | Evolved 2 slots: Power x1, Utility x1 1012 | -9/Materials | Lost 5 parts (2n1u2w) 1069 | -9/Materials | Discovered new exit (range 13) 1290 | -9/Materials | Lost 6 parts (3n1u2w) 1421 | -9/Materials | Repaired Ion Engine 1692 | -9/Materials | Discovered new exit (range 7) 1706 | -9/Materials | Identified exit to Materials 1731 | -9/Materials | Entered another Materials area 1731 | -8/Materials | Evolved 2 slots: Utility x1, Weapon x1 2031 | -8/Materials | Lost 7 parts (2p1u4w) 2159 | -8/Materials | Core integrity fell below 50% 2200 | -8/Materials | Lost 7 parts (2p2n1u2w) 2620 | -8/Materials | Core integrity fell below 20% 2782 | -8/Materials | Build established: Gunner 2929 | -8/Materials | Destroyed by H-61 Shepherd with Heavy Assault Cannon Last Messages --------------- Slammed into K-01 Serf. Acquired 11 matter. Acquired Hardlight Generator. The Hardlight Generator is an example of a part that consumes a large amount of energy each turn, consider turning it off when not vital. Hacking Suite destroyed. Critical hit (Blast). Acquired 3 matter. Acquired 10 matter. K-01 Serf collects debris. Y-45 Defender destroyed. Slammed into K-01 Serf. Acquired 19 matter. Acquired Heat Sink. Slug penetrates Wall. H-61 Shepherd calls for reinforcements. ALERT: Hostile activity reported, dispatching reinforcements to area. Lgt. Ion Engine destroyed. Map ----- +----------------------------------------------------+ | ?????????????????????????????????????????????????? | | ?????????????????????????????????????????????????? | | ?????????????????????????????????????????????????? | | ?????????????????????????????????????????????????? | | ?????????????????????????????????????????????????? | | ?????????????????????????????????????????????????? | | ?????????????????????????????????????????????????? | | ?????????????????????????????????????????????????? | | ?????????????????????????????????????????????????? | | ?????????????????????????????????????????????????? | | ?????????????????????????????????????????????????? | | ?????????????????????????????????????????????????? | | ?????????????????????????"""?????????????????????? | | #????????????????????????""""????????????????????? | | #????????????????????????"""?????????????????????? | | #????????????????????????"""?????????????????????? | | #???????????????????????? ?????????????????????? | | #??????????????????????###+###???????????????????? | | ######?????????????????# #???????????????????? | | ## #????????????????# #???????????????????? | | ## #????????????????# #???????????????????? | | ### ###################*= % #???????????????????? | | =!=[ |!=% k #???????????????????? | | ##########[% ##???????????????????? | | =#????????# #????????????????????? | | ###############????????#@ #????????????????????? | | ##??????????????????????# #????????????????????? | | #???????????????????????# #????????????????????? | | #???????????????????????# #????????????????????? | | #???????????????????????# #????????????????????? | | #???????????????????????# #????????????????????? | | ######??????????????????# #????????????????????? | | =" #??????????????????# #????????????????????? | | = ]#??????????????????+ #????????????????????? | | !!#??????????????????#w ;????????????????????? | | !#???????????????????k ;????????????????????? | | !!#??????????????????? #????????????????????? | | !!#??????????????????? !????????????????????? | | ######??????????????????? H ????????????????????? | | #???????????????????? ????????????????????? | | #???????????????????? ?????????????????????? | | " #????????????????????????????????????????????? | | " #????????????????????????????????????????????? | | " #????????????????????????????????????????????? | | #????????????????????????????????????????????? | | #????????????????????????????????????????????? | | [#????????????????????????????????????????????? | | #????????????????????????????????????????????? | | #####????????????????????????????????????????????? | | ?????????????????????????????????????????????????? | +----------------------------------------------------+ Best States ------------- Heat Dissipation 31 Energy Generation 23 Energy Capacity 455 Matter Stores 300 Matter Capacity 300 Sight Range 18 Robot Scan Range 15 Terrain Scan Density 10 Additional Mass Support 6 Armor Coverage 225 Core Shielding 20 Evasion (%) 63 Recoil Reduction 2 Offensive Hacking 10 Item Schematics ----------------- None Robot Schematics ------------------ None Fabricated ------------ Nothing Alien Tech Used ----------------- None Achievements -------------- Fist Fight Shopping List Challenges ------------ None Game ------ Seed EtherialResetPlating Manual? 0 Play Time 00:38:42 Cumulative 1.8 hours Start 2024.06.25 @ 16:42:43 End 2024.06.25 @ 17:18:27 Sessions 1 Manual Loads 0 Difficulty Rogue Special Mode None Game No. 4 Rogue 4 Adventurer 0 Explorer 0 Win Type - Total 0 Types 0/0/0/0/0/0/0/0/0 Lore% 1 Gallery% 6 Achievement% 5 Wizard Run 0 Options --------- Layout 1 ASCII 0 Keyboard 1 Movement Arrows Keybinds 0 Fullscreen 1 Font 24/Smallcaps Map View 50x35 Zoom Use 50% Tactical HUD 0 Map Filters NONE Filters NONE Steam 1 RUN: 31665299-ff75-43dd-98eb-8c986be5c288